fUSD/lending_fUSD_20250320
["ID","MTS","AMOUNT","RATE_DAILY","PERIOD"]
[356425418,1742434246799,-500.0,0.00027938,2]
[356425420,1742434246809,-602.0,0.00027938,2]
[356425421,1742434246818,-642.55,0.00027938,2]
[356425422,1742434246827,-500.0,0.00027938,2]
[356425423,1742434246836,-500.0,0.00027938,2]
[356425424,1742434246845,-1035.11,0.00027938,2]
[356425425,1742434246854,-500.0,0.00027938,2]
[356425426,1742434246863,-500.0,0.00027938,2]
[356425427,1742434246872,-500.0,0.00027938,2]
[356425428,1742434246882,-500.0,0.00027938,2]
[356425429,1742434246891,-500.0,0.00027938,2]
[356425430,1742434246902,-665.63,0.00027938,2]
[356425431,1742434246911,-506.13,0.00027938,2]
[356425432,1742434246920,-500.0,0.00027938,2]
[356425433,1742434246930,-500.0,0.00027938,2]
[356425434,1742434246939,-500.0,0.00027938,2]
[356425435,1742434246948,-500.0,0.00027938,2]
[356425436,1742434246958,-500.0,0.00027938,2]
[356425437,1742434246968,-500.0,0.00027938,2]
[356425438,1742434246978,-652.33,0.00027938,2]
[356425439,1742434246987,-500.0,0.00027938,2]
[356425440,1742434246998,-500.0,0.00027938,2]
[356425441,1742434247007,-500.0,0.00027938,2]
[356425442,1742434247016,-500.0,0.00027938,2]
[356425443,1742434247026,-872.37,0.00027938,2]
[356425444,1742434247035,-428.05686256,0.00027938,2]
[356425445,1742434247044,-500.0,0.00027938,2]
[356425446,1742434247053,-657.12,0.00027938,2]
[356425447,1742434247063,-500.0,0.00027938,2]
[356425448,1742434247072,-291.19708992,0.00027938,2]
[356425449,1742434247081,-500.0,0.00027938,2]
[356425450,1742434247090,-931.47,0.00027938,2]
[356425451,1742434247099,-500.0,0.00027938,2]
[356425452,1742434247109,-500.0,0.00027938,2]
[356425453,1742434247119,-500.0,0.00027938,2]
[356425454,1742434247134,-500.0,0.00027938,2]
[356425455,1742434247144,-500.0,0.00027938,2]
[356425456,1742434247153,-500.0,0.00027938,2]
[356425457,1742434247162,-500.0,0.00027938,2]
[356425458,1742434247172,-500.0,0.00027938,2]
[356425459,1742434247181,-500.0,0.00027938,2]
[356425460,1742434247192,-500.0,0.00027938,2]
[356425461,1742434247202,-500.0,0.00027938,2]
[356425462,1742434247212,-500.0,0.00027938,2]
[356425463,1742434247221,-500.0,0.00027938,2]
[356425464,1742434247233,-500.0,0.00027938,2]
[356425465,1742434247244,-518.95,0.00027938,2]
[356425466,1742434247256,-500.0,0.00027938,2]
[356425467,1742434247269,-547.56782449,0.00027938,2]
[356425468,1742434247279,-500.0,0.00027938,2]
[356425469,1742434247288,-500.0,0.00027938,2]
[356425470,1742434247298,-500.0,0.00027938,2]
[356425471,1742434247308,-500.0,0.00027938,2]
[356425472,1742434247322,-500.0,0.00027938,2]
[356425473,1742434247332,-804.61,0.00027938,2]
[356425474,1742434247341,-500.0,0.00027938,2]
[356425475,1742434247351,-500.0,0.00027938,2]
[356425476,1742434247360,-684.68,0.00027938,2]
[356425477,1742434247370,-500.0,0.00027938,2]
[356425478,1742434247380,-707.32,0.00027938,2]
[356425479,1742434247389,-500.0,0.00027938,2]
[356425480,1742434247399,-500.0,0.00027938,2]
[356425481,1742434247408,-495.38321298,0.00027938,2]
[356425482,1742434247418,-500.0,0.00027938,2]
[356425483,1742434247428,-500.0,0.00027938,2]
[356425484,1742434247441,-500.0,0.00027938,2]
[356425485,1742434247450,-500.0,0.00027938,2]
[356425486,1742434247459,-500.0,0.00027938,2]
[356425487,1742434247468,-500.0,0.00027938,2]
[356425488,1742434247479,-500.0,0.00027938,2]
[356425489,1742434247489,-500.0,0.00027938,2]
[356425490,1742434247499,-274.72707648,0.00027938,2]
[356425491,1742434247508,-500.0,0.00027938,2]
[356425492,1742434247520,-500.0,0.00027938,2]
[356425493,1742434247530,-500.0,0.00027938,2]
[356425494,1742434247541,-500.0,0.00027938,2]
[356425495,1742434247550,-500.0,0.00027938,2]
[356425496,1742434247563,-500.0,0.00027938,30]
[356425497,1742434247579,-500.0,0.00027938,2]
[356425498,1742434247589,-500.0,0.00027938,2]
[356425499,1742434247599,-456.24395496,0.00027938,2]
[356425500,1742434247609,-1170.24,0.00027938,2]
[356425501,1742434247618,-500.0,0.00027938,2]
[356425502,1742434247628,-500.0,0.00027938,2]
[356425503,1742434247637,-500.0,0.00027938,2]
[356425504,1742434247647,-500.0,0.00027938,2]
[356425505,1742434247658,-500.0,0.00027938,2]
[356425506,1742434247667,-500.0,0.00027938,2]
[356425507,1742434247676,-500.0,0.00027938,2]
[356425508,1742434247685,-500.0,0.00027938,2]
[356425509,1742434247695,-500.0,0.00027938,2]
[356425510,1742434247704,-500.0,0.00027938,2]
[356425511,1742434247714,-500.0,0.00027938,2]
[356425512,1742434247723,-500.0,0.00027938,2]
[356425513,1742434247734,-500.0,0.00027938,2]
[356425514,1742434247745,-500.0,0.00027938,2]
[356425515,1742434247757,-500.0,0.00027938,2]
[356425516,1742434247767,-500.0,0.00027938,2]
[356425517,1742434247777,-242.14942669,0.00027938,2]
[356425518,1742434247787,-500.0,0.00027938,2]
[356425519,1742434247797,-500.0,0.00027938,2]
[356425520,1742434247806,-642.74135921,0.00027938,2]
[356425521,1742434247816,-300.0,0.00027938,2]
[356425522,1742434247826,-500.0,0.00027938,2]
[356425523,1742434247837,-500.0,0.00027938,2]
[356425524,1742434247847,-500.0,0.00027938,2]
[356425525,1742434247856,-926.82,0.00027938,2]
[356425526,1742434247866,-500.0,0.00027938,2]
[356425527,1742434247875,-500.0,0.00027938,2]
[356425528,1742434247885,-500.0,0.00027938,2]
[356425529,1742434247895,-500.0,0.00027938,2]
[356425530,1742434247906,-500.0,0.00027938,2]
[356425531,1742434247915,-500.0,0.00027938,2]
[356425532,1742434247924,-185.51548031,0.00027938,2]
[356425533,1742434247933,-500.0,0.00027938,2]
[356425534,1742434247942,-537.22,0.00027938,2]
[356425535,1742434247952,-500.0,0.00027938,2]
[356425536,1742434247961,-500.0,0.00027938,2]
[356425537,1742434247971,-500.0,0.00027938,2]
[356425538,1742434247980,-500.0,0.00027938,2]
[356425539,1742434247990,-500.0,0.00027938,2]
[356425540,1742434247999,-500.0,0.00027938,2]
[356425541,1742434248009,-500.0,0.00027938,2]
[356425542,1742434248019,-500.0,0.00027938,2]
[356425543,1742434248029,-519.05377,0.00027939,120]
[356425544,1742434248038,-514.112182,0.00027939,120]
[356425545,1742434248048,-1209.36235,0.00027939,40]
[356425546,1742434248059,-838.56981925,0.00027954,2]
[356425547,1742434248069,-500.0,0.00027973,2]
[356425548,1742434248079,-1069.410702,0.00027981,2]
[356425549,1742434248089,-874.150545,0.00027981,2]
[356425550,1742434248099,-535.61,0.00027981,2]
[356425551,1742434248109,-500.0,0.00027981,2]
[356425552,1742434248118,-500.0,0.00027981,2]
[356425553,1742434248128,-585.06,0.00027981,2]
[356425554,1742434248138,-500.0,0.00027981,2]
[356425555,1742434248147,-524.12,0.00027981,2]
[356425556,1742434248156,-500.0,0.00027981,2]
[356425557,1742434248166,-500.0,0.00027981,2]
[356425558,1742434248176,-500.0,0.00027981,2]
[356425559,1742434248187,-500.0,0.00027981,2]
[356425560,1742434248197,-500.0,0.00027981,2]
[356425561,1742434248208,-539.72,0.00027981,2]
[356425562,1742434248218,-500.0,0.00027981,2]
[356425563,1742434248228,-552.65,0.00027981,2]
[356425564,1742434248240,-753.39,0.00027981,2]
[356425565,1742434248250,-500.0,0.00027981,2]
[356425566,1742434248260,-500.0,0.00027981,2]
[356425567,1742434248271,-500.0,0.00027981,2]
[356425568,1742434248282,-836.44,0.00027981,2]
[356425569,1742434248292,-500.0,0.00027981,2]
[356425570,1742434248304,-500.0,0.00027981,2]
[356425571,1742434248315,-500.0,0.00027981,2]
[356425572,1742434248328,-1026.5,0.00027981,2]
[356425573,1742434248338,-500.0,0.00027981,2]
[356425574,1742434248348,-500.0,0.00027981,2]
[356425575,1742434248358,-500.0,0.00027981,2]
[356425576,1742434248368,-500.0,0.00027981,2]
[356425577,1742434248378,-500.0,0.00027981,2]
[356425578,1742434248388,-500.0,0.00027981,2]
[356425579,1742434248397,-745.69,0.00027981,2]
[356425580,1742434248407,-835.1,0.00027981,2]
[356425581,1742434248417,-500.0,0.00027981,2]
[356425582,1742434248426,-500.0,0.00027981,2]
[356425583,1742434248441,-561.66,0.00027981,2]
[356425584,1742434248451,-722.65,0.00027981,2]
[356425585,1742434248461,-500.0,0.00027981,2]
[356425586,1742434248470,-500.0,0.00027981,2]
[356425587,1742434248482,-655.1,0.00027981,2]
[356425588,1742434248491,-500.0,0.00027981,2]
[356425589,1742434248501,-500.0,0.00027981,2]
[356425590,1742434248510,-500.0,0.00027981,2]
[356425591,1742434248522,-742.29,0.00027981,2]
[356425592,1742434248531,-500.0,0.00027981,2]
[356425593,1742434248541,-524.23,0.00027981,2]
[356425594,1742434248551,-500.0,0.00027981,2]
[356425595,1742434248561,-500.0,0.00027981,2]
[356425596,1742434248571,-769.16,0.00027981,2]
[356425597,1742434248581,-500.0,0.00027981,2]
[356425598,1742434248591,-500.0,0.00027981,2]
[356425599,1742434248601,-500.0,0.00027981,2]
[356425600,1742434248611,-500.0,0.00027981,2]
[356425601,1742434248620,-500.0,0.00027981,2]
[356425602,1742434248630,-542.38,0.00027981,2]
[356425603,1742434248639,-768.19,0.00027981,2]
[356425604,1742434248649,-1871.42,0.00027981,2]
[356425605,1742434248659,-500.0,0.00027981,2]
[356425606,1742434248668,-751.42,0.00027981,2]
[356425607,1742434248678,-818.82,0.00027981,2]
[356425608,1742434248687,-500.0,0.00027981,2]
[356425609,1742434248697,-786.87,0.00027981,2]
[356425610,1742434248707,-500.0,0.00027981,2]
[356425611,1742434248717,-500.0,0.00027981,2]
[356425612,1742434248727,-500.0,0.00027981,2]
[356425613,1742434248736,-500.0,0.00027982,2]
[356425614,1742434248746,-500.0,0.00027982,2]
[356425615,1742434248757,-556.54,0.00027982,2]
[356425616,1742434248767,-500.0,0.00027982,2]
[356425617,1742434248777,-500.0,0.00027982,2]
[356425618,1742434248788,-500.0,0.00027982,2]
[356425619,1742434248798,-500.0,0.00027982,2]
[356425620,1742434248808,-500.0,0.00027982,2]
[356425621,1742434248818,-500.0,0.00027982,2]
[356425622,1742434248828,-725.6,0.00027982,2]
[356425623,1742434248837,-1267.4,0.00027982,2]
[356425624,1742434248848,-758.91,0.00027982,2]
[356425625,1742434248858,-500.0,0.00027982,2]
[356425626,1742434248868,-809.58,0.00027982,2]
[356425627,1742434248879,-500.0,0.00027982,2]
[356425628,1742434248889,-500.0,0.00027982,2]
[356425629,1742434248899,-500.0,0.00027982,2]
[356425630,1742434248910,-760.88,0.00027982,2]
[356425631,1742434248919,-500.0,0.00027982,2]
[356425632,1742434248929,-500.0,0.00027982,2]
[356425633,1742434248939,-500.0,0.00027982,2]
[356425634,1742434248949,-500.0,0.00027982,2]
[356425635,1742434248959,-500.0,0.00027982,2]
[356425636,1742434248969,-500.0,0.00027982,2]
[356425637,1742434248980,-563.66,0.00027982,2]
[356425638,1742434248990,-729.4,0.00027982,2]
[356425639,1742434249001,-500.0,0.00027982,2]
[356425640,1742434249011,-1003.75,0.00027982,2]
[356425641,1742434249021,-500.0,0.00027982,2]
[356425642,1742434249031,-500.0,0.00027982,2]
[356425643,1742434249041,-500.0,0.00027982,2]
[356425644,1742434249051,-500.0,0.00027982,2]
[356425645,1742434249061,-500.0,0.00027982,2]
[356425646,1742434249071,-443.61432566,0.00027982,2]
[356425647,1742434249081,-576.55,0.00027982,2]
[356425648,1742434249092,-500.0,0.00027982,2]
[356425649,1742434249102,-500.0,0.00027982,2]
[356425650,1742434249112,-500.0,0.00027982,2]
[356425651,1742434249122,-699.63,0.00027982,2]
[356425652,1742434249133,-667.04,0.00027982,2]
[356425653,1742434249143,-500.0,0.00027982,2]
[356425654,1742434249153,-504.61,0.00027982,2]
[356425655,1742434249163,-500.0,0.00027982,2]
[356425656,1742434249173,-647.68,0.00027982,2]
[356425657,1742434249183,-856.79,0.00027982,2]
[356425658,1742434249193,-728.64,0.00027982,2]
[356425659,1742434249203,-1098.74,0.00027982,2]
[356425660,1742434249213,-500.0,0.00027982,2]
[356425661,1742434249223,-500.0,0.00027982,2]
[356425662,1742434249233,-500.0,0.00027982,2]
[356425663,1742434249243,-500.0,0.00027982,2]
[356425664,1742434249253,-500.0,0.00027982,2]
[356425665,1742434249263,-500.0,0.00027982,2]
[356425666,1742434249273,-541.62,0.00027982,2]
[356425667,1742434249282,-500.0,0.00027982,2]
[356425668,1742434249292,-500.0,0.00027982,2]
[356425669,1742434249302,-980.07,0.00027982,2]
[356425670,1742434249312,-500.0,0.00027982,2]
[356425671,1742434249322,-500.0,0.00027982,2]
[356425672,1742434249333,-979.86,0.00027982,2]
[356425673,1742434249343,-500.0,0.00027982,2]
[356425674,1742434249353,-500.0,0.00027982,2]
[356425675,1742434249363,-500.0,0.00027982,2]
[356425676,1742434249374,-781.8,0.00027982,2]
[356425677,1742434249384,-190.13972917,0.00027982,2]
[356425678,1742434249395,-630.64,0.00027982,2]
[356425679,1742434249404,-500.0,0.00027982,2]
[356425680,1742434249414,-500.0,0.00027982,2]
[356425681,1742434249424,-500.0,0.00027982,2]
[356425682,1742434249434,-735.3,0.00027982,2]
[356425683,1742434249446,-500.0,0.00027982,2]
[356425684,1742434249456,-500.0,0.00027982,2]
[356425685,1742434249466,-500.0,0.00027982,2]
[356425686,1742434249476,-500.0,0.00027982,2]
[356425687,1742434249487,-500.0,0.00027982,2]
[356425688,1742434249498,-665.61,0.00027982,2]
[356425689,1742434249508,-500.0,0.00027982,2]
[356425690,1742434249519,-500.0,0.00027982,2]
[356425691,1742434249530,-500.0,0.00027982,2]
[356425692,1742434249540,-916.5,0.00027982,2]
[356425693,1742434249549,-500.0,0.00027982,2]
[356425694,1742434249559,-500.0,0.00027982,2]
[356425695,1742434249569,-1134.15,0.00027982,2]
[356425696,1742434249579,-500.0,0.00027982,2]
[356425697,1742434249588,-547.16,0.00027982,2]
[356425698,1742434249598,-642.73,0.00027982,2]
[356425699,1742434249610,-500.0,0.00027982,2]
[356425700,1742434249621,-500.0,0.00027982,2]
[356425701,1742434249632,-696.39,0.00027982,2]
[356425702,1742434249642,-500.0,0.00027982,2]
[356425703,1742434249653,-597.75,0.00027982,2]
[356425704,1742434249664,-534.75,0.00027982,2]
[356425705,1742434249675,-500.05,0.00027982,2]
[356425706,1742434249685,-500.0,0.00027982,2]
[356425707,1742434249696,-500.0,0.00027982,2]
[356425708,1742434249706,-830.12,0.00027982,2]
[356425709,1742434249716,-500.0,0.00027982,2]
[356425710,1742434249727,-561.67,0.00027982,2]
[356425711,1742434249737,-500.0,0.00027982,2]
[356425712,1742434249747,-500.0,0.00027982,2]
[356425713,1742434249758,-787.7700489,0.00027982,2]
[356425714,1742434249768,-500.0,0.00027982,2]
[356425715,1742434249778,-674.04,0.00027982,2]
[356425716,1742434249788,-786.37,0.00027982,2]
[356425717,1742434249798,-500.0,0.00027982,2]
[356425718,1742434249808,-500.0,0.00027982,2]
[356425719,1742434249817,-583.88,0.00027982,2]
[356425720,1742434249827,-500.0,0.00027982,2]
[356425721,1742434249837,-518.59,0.00027982,2]
[356425722,1742434249847,-530.19,0.00027982,2]
[356425723,1742434249857,-601.3,0.00027982,2]
[356425724,1742434249867,-500.0,0.00027982,2]
[356425725,1742434249877,-842.44,0.00027982,2]
[356425726,1742434249887,-500.0,0.00027982,2]
[356425727,1742434249897,-500.0,0.00027982,2]
[356425728,1742434249907,-500.0,0.00027982,2]
[356425729,1742434249917,-8331.44608496,0.00027982,2]
[356425730,1742434249928,-74983.0147646,0.00027982,2]
[356425731,1742434249937,-58320.1225947,0.00027983,2]
[356425732,1742434249947,-151.0,0.00027983,7]
[356425733,1742434249957,-151.0,0.00027983,7]
[356425734,1742434249967,-151.0,0.00027983,7]
[356425735,1742434249978,-151.0,0.00027983,7]
[356425736,1742434249987,-151.0,0.00027983,7]
[356425737,1742434249996,-151.0,0.00027983,7]
[356425738,1742434250008,-151.0,0.00027983,7]
[356425739,1742434250018,-197.463,0.00027983,7]
[356425740,1742434250028,-838.56981925,0.00027983,2]
[356425741,1742434250039,-1105.39534017,0.00027985,2]
[356425742,1742434250049,-500.0,0.00027989,2]
[356425743,1742434250058,-500.0,0.00027989,2]
[356425744,1742434250068,-500.0,0.00027989,2]
[356425745,1742434250078,-500.0,0.00027992,2]
[356425746,1742434250087,-500.0,0.00027992,2]
[356425747,1742434250097,-616.61,0.00027992,2]
[356425748,1742434250107,-500.0,0.00027992,2]
[356425749,1742434250117,-500.0,0.00027992,2]
[356425750,1742434250127,-500.0,0.00027992,2]
[356425751,1742434250136,-500.0,0.00027992,2]
[356425752,1742434250146,-897.38,0.00027992,2]
[356425753,1742434250156,-534.26,0.00027992,2]
[356425754,1742434250166,-500.0,0.00027992,2]
[356425755,1742434250176,-500.78,0.00027992,2]
[356425756,1742434250186,-500.0,0.00027992,2]
[356425757,1742434250196,-500.0,0.00027992,2]
[356425758,1742434250206,-500.0,0.00027992,2]
[356425759,1742434250216,-500.0,0.00027992,2]
[356425760,1742434250227,-500.0,0.00027992,2]
[356425761,1742434250236,-500.0,0.00027992,2]
[356425762,1742434250246,-500.0,0.00027992,2]
[356425763,1742434250256,-500.0,0.00027992,2]
[356425764,1742434250266,-649.08,0.00027992,2]
[356425765,1742434250277,-839.69,0.00027992,2]
[356425766,1742434250287,-650.53,0.00027992,2]
[356425767,1742434250296,-500.0,0.00027992,2]
[356425768,1742434250306,-500.0,0.00027992,2]
[356425769,1742434250316,-500.0,0.00027992,2]
[356425770,1742434250325,-1270.1,0.00027992,2]
[356425771,1742434250335,-500.0,0.00027992,2]
[356425772,1742434250345,-500.0,0.00027992,2]
[356425773,1742434250354,-575.37665418,0.00027992,2]
[356425774,1742434250364,-500.0,0.00027992,2]
[356425775,1742434250373,-500.0,0.00027992,2]
[356425776,1742434250383,-500.0,0.00027992,2]
[356425777,1742434250393,-401.53421932,0.00027992,2]
[356425778,1742434250403,-500.0,0.00027992,2]
[356425779,1742434250413,-500.0,0.00027992,2]
[356425780,1742434250423,-642.14,0.00027992,2]
[356425781,1742434250433,-500.0,0.00027992,2]
[356425782,1742434250446,-500.0,0.00027992,2]
[356425783,1742434250456,-500.0,0.00027992,2]
[356425784,1742434250466,-500.0,0.00027992,2]
[356425785,1742434250475,-708.75,0.00027992,2]
[356425786,1742434250486,-500.0,0.00027992,2]
[356425787,1742434250497,-500.0,0.00027992,2]
[356425788,1742434250507,-747.32,0.00027992,2]
[356425789,1742434250519,-500.0,0.00027992,2]
[356425790,1742434250530,-793.29,0.00027992,2]
[356425791,1742434250540,-625.35,0.00027992,2]
[356425792,1742434250775,-500.0,0.00027992,2]
[356425793,1742434250784,-500.0,0.00027992,2]
[356425794,1742434250794,-621.69,0.00027992,2]
[356425795,1742434250804,-500.0,0.00027992,2]
[356425796,1742434250813,-624.53,0.00027992,2]
[356425797,1742434250823,-500.0,0.00027992,2]
[356425798,1742434250832,-500.0,0.00027992,2]
[356425799,1742434250842,-559.23,0.00027992,2]
[356425800,1742434250852,-567.55,0.00027992,2]
[356425801,1742434250861,-568.51,0.00027992,2]
[356425802,1742434250871,-500.0,0.00027992,2]
[356425803,1742434250881,-1408.54,0.00027992,2]
[356425804,1742434250890,-500.0,0.00027992,2]
[356425805,1742434250900,-522.61,0.00027992,2]
[356425806,1742434250909,-559.67,0.00027992,2]
[356425807,1742434250919,-500.0,0.00027992,2]
[356425808,1742434250928,-675.74,0.00027992,2]
[356425809,1742434250938,-500.0,0.00027992,2]
[356425810,1742434250947,-608.21,0.00027992,2]
[356425811,1742434250956,-500.0,0.00027992,2]
[356425812,1742434250965,-85782.39914581,0.00027993,12]
[356425813,1742434250989,-5263.88326285,0.00027993,12]
[356425817,1742434838621,547.1964,0.00012001,2]
[356425841,1742435432232,-252.97,0.00024647,2]
[356425842,1742435432242,-175.12,0.00025,2]
[356425843,1742435432252,-150.0,0.00025293,2]
[356425844,1742435432262,-150.0,0.00025438,2]
[356425845,1742435432271,-150.0,0.00025723,2]
[356425846,1742435432280,-150.0,0.00026007,2]
[356425847,1742435432290,-150.0,0.00026022,2]
[356425848,1742435432300,-150.0,0.00026273,2]
[356425849,1742435432310,-160.52549495,0.0002653,120]
[356425850,1742435432321,-35.06450505,0.0002653,120]
[356425851,1742435432331,-161.07,0.00026555,2]
[356425852,1742435432340,-164.36,0.0002656,2]
[356425853,1742435432350,-156.47,0.00026621,30]
[356425854,1742435432360,-1000.0,0.00026694,2]
[356425855,1742435432369,-813.76,0.00026765,2]
[356425856,1742435432379,-1453.76,0.00026769,2]
[356425857,1742435432388,-150.0,0.00026778,2]
[356425858,1742435432398,-150.0,0.00026853,2]
[356425859,1742435432408,-503.48436925,0.000269,4]
[356425860,1742435432418,-420.0332329,0.000269,2]
[356425861,1742435432430,-645.18575169,0.000269,2]
[356425862,1742435432441,-28.57771541,0.000269,2]
[356425863,1742435432451,-250.0,0.00026905,2]
[356425864,1742435432460,-252.97,0.00026911,2]
[356425865,1742435432470,-975.2647327,0.00027,28]
[356425866,1742435432479,-300.0,0.00027029,2]
[356425867,1742435432489,-82.91400433,0.0002703,2]
[356425868,1742435432500,-637.44999998,0.0002703,2]
[356425869,1742435432515,-584.860001,0.0002703,2]
[356425870,1742435432526,-2104.53241457,0.0002703,2]
[356425871,1742435432540,-859.88358012,0.0002703,2]
[356425872,1742435432550,-150.0,0.00027057,2]
[356425873,1742435432560,-201.35593609,0.00027096,2]
[356425874,1742435432570,-150.0,0.00027114,2]
[356425875,1742435432580,-150.0,0.00027164,2]
[356425876,1742435432589,-150.0,0.00027164,2]
[356425877,1742435432599,-855.13063381,0.00027201,2]
[356425878,1742435432609,-29.10074791,0.00027218,2]
[356425879,1742435432620,-131.96925209,0.00027218,2]
[356425880,1742435432630,-201.35593609,0.00027233,2]
[356425881,1742435432639,-551.9061778,0.0002726,4]
[356425882,1742435432649,-201.35593609,0.00027342,2]
[356425883,1742435432659,-2345.47,0.00027342,2]
[356425884,1742435432669,-150.0,0.00027356,2]
[356425885,1742435432678,-18.49117637,0.00027398,2]
[356425886,1742435432698,-131.50882363,0.00027398,2]
[356425887,1742435432707,-150.0,0.00027413,2]
[356425888,1742435432717,-201.35593609,0.00027479,30]
[356425889,1742435432726,-157.032006,0.00027498,120]
[356425890,1742435432737,-1098.0,0.000275,120]
[356425891,1742435432747,-153.0,0.00027561,2]
[356425892,1742435432756,-153.0,0.00027561,2]
[356425893,1742435432766,-157.032006,0.00027598,120]
[356425894,1742435432775,-200.0,0.000276,10]
[356425895,1742435432785,-201.35593609,0.00027616,30]
[356425896,1742435432796,-1069.35040963,0.0002762,2]
[356425897,1742435432810,-157.03201,0.00027648,120]
[356425898,1742435432819,-500.0,0.000277,10]
[356425899,1742435432828,-503.48436901,0.00027728,4]
[356425900,1742435432838,-1000.0,0.00027746,2]
[356425901,1742435432848,-157.03201,0.00027748,120]
[356425902,1742435432857,-201.35593609,0.00027753,30]
[356425903,1742435432867,-184.23795724,0.00027783,17]
[356425904,1742435432877,-980.588,0.00027783,17]
[356425905,1742435432887,-745.83760022,0.00027783,2]
[356425906,1742435432899,-906.94589978,0.00027783,2]
[356425907,1742435432909,-694.98395732,0.000278,10]
[356425908,1742435432921,-5.01604268,0.000278,10]
[356425909,1742435432931,-281.23001809,0.0002782,2]
[356425912,1742435432943,-20.76998191,0.0002782,2]
[356425913,1742435432952,-166.23137882,0.00027827,2]
[356425915,1742435432962,-157.03201,0.00027848,120]
[356425917,1742435432974,-1000.0,0.00027854,2]
[356425919,1742435432985,-176.6635269,0.00027869,2]
[356425921,1742435432994,-2500.0,0.00027871,2]
[356425923,1742435433004,-555.1665,0.0002788,2]
[356425926,1742435433015,-242.95935386,0.00027881,2]
[356425928,1742435433024,-171.41391884,0.00027881,2]
[356425930,1742435433035,-161.07,0.00027882,2]
[356425932,1742435433045,-201.35593609,0.0002789,30]
[356425934,1742435433056,-257.74324493,0.00027899,21]
[356425936,1742435433066,-492.0,0.000279,6]
[356425938,1742435433076,-1000.0,0.000279,10]
[356425940,1742435433085,-16025.15196168,0.000279,2]
[356425942,1742435433095,-150.0,0.00027924,2]
[356425944,1742435433104,-791.17,0.00027926,2]
[356425946,1742435433114,-500.0,0.00027926,2]
[356425948,1742435433123,-500.0,0.00027926,2]
[356425949,1742435433133,-500.0,0.00027926,2]
[356425951,1742435433143,-500.0,0.00027926,2]
[356425953,1742435433152,-500.0,0.00027926,2]
[356425955,1742435433162,-500.0,0.00027926,2]
[356425957,1742435433173,-500.0,0.00027926,2]
[356425959,1742435433183,-500.0,0.00027926,2]
[356425962,1742435433194,-500.0,0.00027926,2]
[356425964,1742435433203,-893.34,0.00027926,2]
[356425966,1742435433213,-500.0,0.00027926,2]
[356425967,1742435433223,-315.3731401,0.00027926,2]
[356425969,1742435433232,-500.0,0.00027926,2]
[356425971,1742435433242,-500.0,0.00027926,2]
[356425973,1742435433251,-630.13,0.00027926,2]
[356425975,1742435433260,-500.0,0.00027926,2]
[356425977,1742435433269,-500.0,0.00027926,2]
[356425979,1742435433278,-500.0,0.00027926,2]